[Event "Candidates Tournament"]
[Site "Khanty-Mansiysk"]
[Date "2014.03.30"]
[Round "14"]
[White "Topalov, Veselin"]
[Black "Andreikin, Dmitry"]
[Result "1/2-1/2"]
[ECO "C65"]
[WhiteElo "2785"]
[BlackElo "2709"]
[Annotator "ChessBase Website"]
[PlyCount "138"]
[EventDate "2014.03.13"]
[EventType "tourn"]
[EventRounds "14"]
[EventCountry "RUS"]
[EventCategory "21"]
[SourceTitle "CBM 160"]
[Source "ChessBase"]
[SourceDate "2014.05.15"]
[SourceVersion "1"]
[SourceVersionDate "2014.05.15"]
[SourceQuality "1"]
[TimeControl "40/7200:20/3600:900+30"]
[WhiteClock "1:02:54"]
[BlackClock "0:19:49"]

1. e4 {[%emt 0:00:05]} e5 {[%emt 0:00:08]} 2. Nf3 {[%emt 0:00:05]} Nc6 {
[%emt 0:00:05]} 3. Bb5 {[%emt 0:00:06]} Nf6 {[%emt 0:00:04]} 4. d3 {[%emt 0:00:
06]} Bc5 {[%emt 0:00:05]} 5. O-O {[%emt 0:00:06]} Nd4 {[%emt 0:00:04]} 6. Nxd4
{[%emt 0:00:06]} Bxd4 {[%emt 0:00:04]} 7. c3 {[%emt 0:00:06]} Bb6 {[%emt 0:00:
04]} 8. Na3 {[%emt 0:00:05]} c6 {[%emt 0:17:02]} 9. Ba4 {[%emt 0:00:03]} O-O {
[%emt 0:00:12]} 10. Bg5 {[%emt 0:00:10]} h6 $146 {[%emt 0:17:35]} (10... d6 11.
Nc4 h6 12. Bh4 Be6 13. Nxb6 axb6 14. a3 Qe7 15. Bc2 Rad8 16. d4 Rfe8 17. Qf3 b5
18. h3 Bc8 19. Rae1 Be6 20. Kh1 Bc8 21. Bd3 Be6 22. Bc2 {1/2-1/2 (22)
Venkatesh,M (2450)-Gupta,A (2412) Bikaner 2004}) 11. Bh4 {[%emt 0:00:18]} d5 {
[%emt 0:00:05]} 12. exd5 {[%emt 0:04:19]} cxd5 {[%emt 0:00:51]} 13. Bb3 {
[%emt 0:09:26]} g5 {[%emt 0:12:06][%csl Rf5,Rg6,Rh6] The other hard-fought
game of the round. White always had some lingering positional advantages in
the position, especially targeting Black's weak pawns on the kingside. However
Andreikin always had some nagging counterplay with his active pieces. Topalov
managed to win a pawn but his own structure was compromised, eventually
leading to an easily drawn bishop endgame.} 14. Bg3 {[%emt 0:01:13]} Re8 {
[%emt 0:00:10]} 15. Re1 {[%emt 0:07:34]} Bc7 {[%emt 0:04:41]} 16. Nc2 {[%emt 0:
02:09]} Bg4 {[%emt 0:11:47]} 17. Qd2 {[%emt 0:06:26]} d4 {[%emt 0:05:00]} 18.
h3 {[%emt 0:14:22]} Bf5 {[%emt 0:01:51]} 19. Ba4 {[%emt 0:00:17]} Bd7 {[%emt 0:
04:48]} 20. Bxd7 {[%emt 0:00:35]} dxc3 {[%emt 0:00:08]} 21. Qxc3 {[%emt 0:00:
45]} Nxd7 {[%emt 0:03:11]} 22. d4 {[%emt 0:03:04]} Rc8 {[%emt 0:00:18]} 23. Qb3
{[%emt 0:02:51]} Ba5 {[%emt 0:06:18]} 24. Re2 {[%emt 0:03:25]} exd4 {[%emt 0:
05:00]} 25. Rxe8+ {[%emt 0:02:58]} Qxe8 {[%emt 0:00:04]} 26. Nxd4 {[%emt 0:00:
11]} Nc5 {[%emt 0:00:35]} 27. Qf3 {[%emt 0:09:56]} Qe4 {[%emt 0:01:38]} 28. Nf5
{[%emt 0:00:09]} Qxf3 {[%emt 0:02:02]} 29. gxf3 {[%emt 0:00:04]} Rd8 {[%emt 0:
00:32]} 30. Nxh6+ {[%emt 0:02:41]} Kg7 {[%emt 0:00:10]} 31. Nf5+ {[%emt 0:00:
04]} Kg6 {[%emt 0:00:07]} 32. Nd6 {[%emt 0:00:33]} Bb6 {[%emt 0:10:21]} 33. Nc4
{[%emt 0:03:12]} Ne6 {[%emt 0:01:38]} 34. Re1 {[%emt 0:05:32]} Bd4 {[%emt 0:00:
09]} 35. b3 {[%emt 0:00:20]} Rd5 {[%emt 0:03:34]} 36. Kf1 {[%emt 0:06:05]} Bc5
{[%emt 0:00:39]} 37. Re2 {[%emt 0:03:40]} a6 {[%emt 0:00:26]} 38. Rd2 {[%emt 0:
03:31]} Rxd2 {[%emt 0:00:57]} 39. Nxd2 {[%emt 0:00:05]} f5 {[%emt 0:00:27]} 40.
Bb8 {[%emt 0:00:00]} f4 {[%emt 0:00:00]} 41. Ne4 {[%emt 0:03:53]} Be7 {[%emt 0:
05:55]} 42. Ba7 {[%emt 0:04:34]} Kh5 {[%emt 0:03:50]} 43. Bb6 {[%emt 0:00:18]}
Kh4 {[%emt 0:07:28]} 44. Kg2 {[%emt 0:00:06]} Bd8 {[%emt 0:05:12]} 45. Bc5 {
[%emt 0:03:27]} Kh5 {[%emt 0:02:57]} 46. Bd6 {[%emt 0:01:53]} Kh4 {[%emt 0:02:
14]} 47. Bb4 {[%emt 0:02:38]} Kh5 {[%emt 0:01:06]} 48. Ba3 {[%emt 0:01:20]} Kg6
{[%emt 0:04:37]} 49. Kf1 {[%emt 0:01:06]} Kh5 {[%emt 0:00:11]} 50. Bb4 {
[%emt 0:00:15]} Kg6 {[%emt 0:02:50]} 51. Nd2 {[%emt 0:03:15]} Kh5 {[%emt 0:01:
21]} 52. Nc4 {[%emt 0:00:26]} Bc7 {[%emt 0:05:05]} 53. Be7 {[%emt 0:00:07]} Kh4
{[%emt 0:02:02]} 54. Kg2 {[%emt 0:00:10]} Bd8 {[%emt 0:00:11]} 55. Bb4 {
[%emt 0:05:26]} Bc7 {[%emt 0:00:06]} 56. Nd2 {[%emt 0:00:32]} Kh5 {[%emt 0:00:
31]} 57. Ne4 {[%emt 0:00:13]} Bd8 {[%emt 0:00:06]} 58. Kf1 {[%emt 0:02:54]} Kg6
{[%emt 0:02:18]} 59. Bd6 {[%emt 0:05:19]} Kh5 {[%emt 0:00:32]} 60. Ba3 {
[%emt 0:00:00]} Kg6 {[%emt 0:00:00]} 61. Bb2 {[%emt 0:00:00]} Be7 {[%emt 0:02:
45]} 62. a4 {[%emt 0:00:07]} Kh5 {[%emt 0:02:05]} 63. Be5 {[%emt 0:00:12]} Kh4
{[%emt 0:03:33]} 64. Kg2 {[%emt 0:00:18]} Nc5 {[%emt 0:01:46]} 65. Nxc5 {
[%emt 0:00:55]} Bxc5 {[%emt 0:00:08]} 66. Bf6 {[%emt 0:00:08]} Bd6 {[%emt 0:03:
50]} 67. Kf1 {[%emt 0:00:11]} Kxh3 {[%emt 0:00:58]} 68. Bxg5 {[%emt 0:00:04]}
Kh2 {[%emt 0:01:03]} 69. Ke2 {[%emt 0:00:06]} Kg2 {[%emt 0:00:05]} 1/2-1/2